[Event "Early-Titled-Tuesday-Blitz-March-26-2024"]
[Site "Chess.com"]
[Date "2024.03.26"]
[Round "10"]
[White "Herzog2012"]
[Black "ArchibaldCerveza29"]
[Result "1-0"]
[WhiteElo "2532"]
[BlackElo "2377"]
[TimeControl "180+1"]
[EndTime "9:53:06 PDT"]
[Termination "Herzog2012 won by resignation"]

1. e4 {[%clk 0:02:58.4]} 1... e5 {[%clk 0:02:59.7]} 2. Nf3 {[%clk 0:02:53]} 2...
Nf6 {[%clk 0:02:59.2]} 3. Nxe5 {[%clk 0:02:52.2]} 3... d6 {[%clk 0:02:58.9]} 4.
Nf3 {[%clk 0:02:52.4]} 4... Nxe4 {[%clk 0:02:58.8]} 5. d4 {[%clk 0:02:52.1]}
5... d5 {[%clk 0:02:57.9]} 6. Bd3 {[%clk 0:02:48]} 6... Bd6 {[%clk 0:02:57.8]}
7. O-O {[%clk 0:02:42.6]} 7... O-O {[%clk 0:02:57]} 8. c4 {[%clk 0:02:42.4]}
8... c6 {[%clk 0:02:56.5]} 9. Nc3 {[%clk 0:02:41.2]} 9... Nxc3 {[%clk
0:02:55.7]} 10. bxc3 {[%clk 0:02:42.1]} 10... dxc4 {[%clk 0:02:56.5]} 11. Bxc4
{[%clk 0:02:42.2]} 11... Bg4 {[%clk 0:02:57.2]} 12. h3 {[%clk 0:02:27.9]} 12...
Bh5 {[%clk 0:02:27.6]} 13. g4 {[%clk 0:02:22.3]} 13... Bg6 {[%clk 0:02:23.1]}
14. Ne5 {[%clk 0:02:21.9]} 14... Nd7 {[%clk 0:02:19.6]} 15. Nxg6 {[%clk
0:02:10]} 15... hxg6 {[%clk 0:02:20.5]} 16. f4 {[%clk 0:02:03.7]} 16... c5
{[%clk 0:01:38.7]} 17. d5 {[%clk 0:01:43.6]} 17... Nb6 {[%clk 0:01:24]} 18. Qd3
{[%clk 0:01:22.2]} 18... Qh4 {[%clk 0:01:09.4]} 19. Rf3 {[%clk 0:01:16.6]} 19...
Rfe8 {[%clk 0:01:05]} 20. Be3 {[%clk 0:01:09.4]} 20... g5 {[%clk 0:00:47.9]} 21.
fxg5 {[%clk 0:00:53.8]} 21... Nd7 {[%clk 0:00:47.1]} 22. g6 {[%clk 0:00:30.4]}
22... f6 {[%clk 0:00:37.5]} 23. Bf4 {[%clk 0:00:21.6]} 23... Bxf4 {[%clk
0:00:36.9]} 24. Rxf4 {[%clk 0:00:22.5]} 24... Ne5 {[%clk 0:00:37.3]} 25. d6+
{[%clk 0:00:21.7]} 25... Kh8 {[%clk 0:00:34.1]} 26. Qf1 {[%clk 0:00:14.2]} 26...
Qg3+ {[%clk 0:00:32.9]} 27. Kh1 {[%clk 0:00:14.5]} 27... Nxc4 {[%clk 0:00:30.8]}
28. Rxc4 {[%clk 0:00:14.4]} 28... Re3 {[%clk 0:00:29.9]} 29. Rxc5 {[%clk
0:00:13.6]} 29... Qxh3+ {[%clk 0:00:28.1]} 30. Qxh3+ {[%clk 0:00:13.3]} 30...
Rxh3+ {[%clk 0:00:29]} 31. Kg2 {[%clk 0:00:14]} 31... Rh6 {[%clk 0:00:24.9]} 32.
Rh1 {[%clk 0:00:08.8]} 32... Rd8 {[%clk 0:00:23.1]} 33. d7 {[%clk 0:00:07.5]}
1-0

[Event "Early-Titled-Tuesday-Blitz-March-26-2024"]
[Site "Chess.com"]
[Date "2024.03.26"]
[Round "10"]
[White "RebelJohnny"]
[Black "wqws"]
[Result "0-1"]
[WhiteElo "2577"]
[BlackElo "2741"]
[TimeControl "180+1"]
[EndTime "9:53:07 PDT"]
[Termination "wqws won on time"]

1. e4 {[%clk 0:03:00.9]} 1... e5 {[%clk 0:02:59.9]} 2. Nf3 {[%clk 0:03:00.9]}
2... Nc6 {[%clk 0:03:00.8]} 3. Nc3 {[%clk 0:03:01.1]} 3... Nf6 {[%clk
0:03:00.8]} 4. d4 {[%clk 0:03:01.4]} 4... exd4 {[%clk 0:03:00.8]} 5. Nxd4 {[%clk
0:03:02.3]} 5... Bb4 {[%clk 0:03:01.2]} 6. Nxc6 {[%clk 0:03:02.1]} 6... bxc6
{[%clk 0:03:02.1]} 7. Bd3 {[%clk 0:03:02.5]} 7... d5 {[%clk 0:03:02.6]} 8. exd5
{[%clk 0:03:03.4]} 8... O-O {[%clk 0:03:02.5]} 9. O-O {[%clk 0:03:03.4]} 9...
cxd5 {[%clk 0:03:02.9]} 10. h3 {[%clk 0:03:03.7]} 10... Be6 {[%clk 0:03:02.5]}
11. Qf3 {[%clk 0:03:02]} 11... Rb8 {[%clk 0:03:00.3]} 12. Bf4 {[%clk 0:02:56]}
12... Bd6 {[%clk 0:02:56.9]} 13. b3 {[%clk 0:02:55.7]} 13... c5 {[%clk
0:02:56.2]} 14. Rad1 {[%clk 0:02:52]} 14... Rb4 {[%clk 0:02:54.7]} 15. Ne2
{[%clk 0:02:47]} 15... h6 {[%clk 0:02:51.6]} 16. Rfe1 {[%clk 0:02:41.2]} 16...
Qc7 {[%clk 0:02:50.5]} 17. Bxh6 {[%clk 0:02:06.3]} 17... Nd7 {[%clk 0:02:50.2]}
18. Bd2 {[%clk 0:01:45.1]} 18... Ne5 {[%clk 0:02:50.3]} 19. Qh5 {[%clk
0:01:30.7]} 19... Nxd3 {[%clk 0:02:49.7]} 20. cxd3 {[%clk 0:01:29.9]} 20... Rbb8
{[%clk 0:02:38.5]} 21. Qh4 {[%clk 0:01:16.9]} 21... Be7 {[%clk 0:02:34.8]} 22.
Bg5 {[%clk 0:01:15]} 22... f6 {[%clk 0:02:26.1]} 23. Bf4 {[%clk 0:01:11.4]}
23... Bd6 {[%clk 0:02:23]} 24. Qg3 {[%clk 0:01:04]} 24... Rbd8 {[%clk
0:02:15.1]} 25. Bxd6 {[%clk 0:01:00.9]} 25... Qxd6 {[%clk 0:02:12.6]} 26. Qxd6
{[%clk 0:00:58.3]} 26... Rxd6 {[%clk 0:02:13.5]} 27. Rc1 {[%clk 0:00:58.8]}
27... Rc8 {[%clk 0:02:11.3]} 28. b4 {[%clk 0:00:55.8]} 28... cxb4 {[%clk
0:02:08.1]} 29. Nd4 {[%clk 0:00:44.7]} 29... Rxc1 {[%clk 0:02:06.4]} 30. Rxc1
{[%clk 0:00:45.6]} 30... Bd7 {[%clk 0:02:04.7]} 31. Rc5 {[%clk 0:00:39.2]} 31...
Ra6 {[%clk 0:01:58.6]} 32. Rxd5 {[%clk 0:00:37.7]} 32... Be8 {[%clk 0:01:58.9]}
33. Nc2 {[%clk 0:00:29.3]} 33... Rxa2 {[%clk 0:01:55.8]} 34. Nxb4 {[%clk
0:00:29.6]} 34... Ra1+ {[%clk 0:01:56.4]} 35. Kh2 {[%clk 0:00:29.7]} 35... a5
{[%clk 0:01:57.2]} 36. Nc2 {[%clk 0:00:25.6]} 36... Ra2 {[%clk 0:01:56.3]} 37.
Ne3 {[%clk 0:00:24.8]} 37... a4 {[%clk 0:01:54.4]} 38. Ra5 {[%clk 0:00:25]}
38... Rd2 {[%clk 0:01:50.7]} 39. Ra8 {[%clk 0:00:18.3]} 39... Kf7 {[%clk
0:01:50.2]} 40. Nf5 {[%clk 0:00:11.1]} 40... Bd7 {[%clk 0:01:47.1]} 41. Ra7
{[%clk 0:00:08.9]} 41... Rxd3 {[%clk 0:01:46.7]} 42. g4 {[%clk 0:00:07.5]} 42...
a3 {[%clk 0:01:46.3]} 43. Ne3 {[%clk 0:00:07.9]} 43... Ke6 {[%clk 0:01:35]} 44.
Nc4 {[%clk 0:00:08.2]} 44... Rf3 {[%clk 0:01:33.5]} 45. Kg1 {[%clk 0:00:07.8]}
45... Rxh3 {[%clk 0:01:31.8]} 46. Rxa3 {[%clk 0:00:08.5]} 46... Rxa3 {[%clk
0:01:29.8]} 47. Nxa3 {[%clk 0:00:09.4]} 47... Kd5 {[%clk 0:01:29.2]} 48. f3
{[%clk 0:00:09.9]} 48... Ba4 {[%clk 0:01:29.2]} 49. Nb1 {[%clk 0:00:09.6]} 49...
Kd4 {[%clk 0:01:29.1]} 50. Nd2 {[%clk 0:00:07.3]} 50... Ke3 {[%clk 0:01:29.3]}
51. Nc4+ {[%clk 0:00:04.1]} 51... Kxf3 {[%clk 0:01:29.7]} 52. g5 {[%clk
0:00:04.7]} 52... f5 {[%clk 0:01:25.7]} 53. Ne5+ {[%clk 0:00:03]} 53... Kf4
{[%clk 0:01:25.1]} 54. Nf7 {[%clk 0:00:03.4]} 54... Be8 {[%clk 0:01:22.3]} 55.
g6 {[%clk 0:00:04]} 55... Kg4 {[%clk 0:01:22.6]} 56. Kf2 {[%clk 0:00:02.3]}
56... Kh5 {[%clk 0:01:22.8]} 57. Kf3 {[%clk 0:00:01.3]} 57... Kxg6 {[%clk
0:01:22.8]} 58. Ne5+ {[%clk 0:00:01.1]} 58... Kf6 {[%clk 0:01:23.3]} 0-1

[Event "Early-Titled-Tuesday-Blitz-March-26-2024"]
[Site "Chess.com"]
[Date "2024.03.26"]
[Round "10"]
[White "HajiyevKanan"]
[Black "djano"]
[Result "0-1"]
[WhiteElo "2539"]
[BlackElo "2664"]
[TimeControl "180+1"]
[EndTime "9:53:07 PDT"]
[Termination "djano won on time"]

1. d4 {[%clk 0:03:00.9]} 1... Nf6 {[%clk 0:02:59]} 2. Nf3 {[%clk 0:03:01.4]}
2... g6 {[%clk 0:02:58.6]} 3. e3 {[%clk 0:03:02]} 3... Bg7 {[%clk 0:02:59]} 4.
Be2 {[%clk 0:03:02.9]} 4... O-O {[%clk 0:02:59.4]} 5. O-O {[%clk 0:03:03.8]}
5... d6 {[%clk 0:02:59.8]} 6. b3 {[%clk 0:03:04.5]} 6... b6 {[%clk 0:02:58.6]}
7. Bb2 {[%clk 0:03:05]} 7... Bb7 {[%clk 0:02:59.3]} 8. c4 {[%clk 0:03:05.7]}
8... Nbd7 {[%clk 0:02:59.2]} 9. d5 {[%clk 0:03:02.1]} 9... e5 {[%clk 0:02:58.7]}
10. dxe6 {[%clk 0:03:01]} 10... fxe6 {[%clk 0:02:59.1]} 11. Nbd2 {[%clk
0:02:56.1]} 11... Qe7 {[%clk 0:02:57.7]} 12. Qc2 {[%clk 0:02:51.1]} 12... e5
{[%clk 0:02:55.8]} 13. Ng5 {[%clk 0:02:49.1]} 13... Nc5 {[%clk 0:02:46.2]} 14.
b4 {[%clk 0:02:14.1]} 14... Ne6 {[%clk 0:02:39.6]} 15. Nge4 {[%clk 0:02:03.5]}
15... Nxe4 {[%clk 0:02:25.2]} 16. Nxe4 {[%clk 0:02:03.8]} 16... Qh4 {[%clk
0:02:25.8]} 17. Nc3 {[%clk 0:01:51.1]} 17... Ng5 {[%clk 0:01:59.3]} 18. Nd5
{[%clk 0:01:38.3]} 18... Rf7 {[%clk 0:01:59.7]} 19. g3 {[%clk 0:01:25.4]} 19...
Qh3 {[%clk 0:01:47.2]} 20. f4 {[%clk 0:01:23.4]} 20... Ne6 {[%clk 0:01:37.3]}
21. Qd1 {[%clk 0:01:11.5]} 21... h5 {[%clk 0:01:28.7]} 22. Qc2 {[%clk
0:01:11.1]} 22... Kh7 {[%clk 0:01:03.2]} 23. Bd3 {[%clk 0:01:08.2]} 23... Qg4
{[%clk 0:00:40.4]} 24. Be2 {[%clk 0:01:02.9]} 24... Qh3 {[%clk 0:00:36.1]} 25.
Bd3 {[%clk 0:01:03.1]} 25... Qg4 {[%clk 0:00:36]} 26. Qe2 {[%clk 0:00:43.6]}
26... Qxe2 {[%clk 0:00:35.3]} 27. Bxe2 {[%clk 0:00:44.2]} 27... exf4 {[%clk
0:00:34.6]} 28. Bxg7 {[%clk 0:00:44.4]} 28... Kxg7 {[%clk 0:00:35.5]} 29. gxf4
{[%clk 0:00:38.2]} 29... Re8 {[%clk 0:00:34.4]} 30. Bf3 {[%clk 0:00:35.4]} 30...
Nf8 {[%clk 0:00:33.4]} 31. Kf2 {[%clk 0:00:33.3]} 31... Ba6 {[%clk 0:00:29.9]}
32. b5 {[%clk 0:00:32.9]} 32... Bc8 {[%clk 0:00:29.9]} 33. a4 {[%clk 0:00:33.6]}
33... Ne6 {[%clk 0:00:27]} 34. h4 {[%clk 0:00:30.8]} 34... Nc5 {[%clk
0:00:27.2]} 35. Rfd1 {[%clk 0:00:28.1]} 35... Bf5 {[%clk 0:00:24.1]} 36. a5
{[%clk 0:00:25.5]} 36... Nb3 {[%clk 0:00:24.1]} 37. Ra3 {[%clk 0:00:24.6]} 37...
Nxa5 {[%clk 0:00:24]} 38. Rd4 {[%clk 0:00:09.3]} 38... Be6 {[%clk 0:00:20.5]}
0-1

[Event "Early-Titled-Tuesday-Blitz-March-26-2024"]
[Site "Chess.com"]
[Date "2024.03.26"]
[Round "10"]
[White "Pedrada88"]
[Black "WiktoriaPOL"]
[Result "1-0"]
[WhiteElo "2559"]
[BlackElo "2305"]
[TimeControl "180+1"]
[EndTime "9:53:16 PDT"]
[Termination "Pedrada88 won by checkmate"]

1. d4 {[%clk 0:03:00.9]} 1... Nf6 {[%clk 0:02:54.6]} 2. c4 {[%clk 0:03:00.9]}
2... g6 {[%clk 0:02:53.3]} 3. Nf3 {[%clk 0:03:00.3]} 3... Bg7 {[%clk 0:02:47]}
4. g3 {[%clk 0:03:00.6]} 4... d6 {[%clk 0:02:46.5]} 5. Bg2 {[%clk 0:03:01]} 5...
O-O {[%clk 0:02:46.3]} 6. O-O {[%clk 0:03:01.4]} 6... Nc6 {[%clk 0:02:41.5]} 7.
Nc3 {[%clk 0:03:00.6]} 7... e5 {[%clk 0:02:41.6]} 8. d5 {[%clk 0:03:00.3]} 8...
Ne7 {[%clk 0:02:41.8]} 9. Ne1 {[%clk 0:02:59.2]} 9... Nd7 {[%clk 0:02:26.9]} 10.
Rb1 {[%clk 0:02:56.6]} 10... f5 {[%clk 0:02:08.4]} 11. b4 {[%clk 0:02:55.1]}
11... Nf6 {[%clk 0:02:07.7]} 12. c5 {[%clk 0:02:52.4]} 12... Bd7 {[%clk
0:01:46.3]} 13. a4 {[%clk 0:02:37.6]} 13... h6 {[%clk 0:01:32.3]} 14. b5 {[%clk
0:02:28.1]} 14... g5 {[%clk 0:01:31.9]} 15. c6 {[%clk 0:02:27.5]} 15... bxc6
{[%clk 0:01:26.4]} 16. bxc6 {[%clk 0:02:23.9]} 16... Bc8 {[%clk 0:01:26.6]} 17.
f4 {[%clk 0:02:19.2]} 17... exf4 {[%clk 0:01:24.3]} 18. gxf4 {[%clk 0:02:19.2]}
18... gxf4 {[%clk 0:01:21.7]} 19. Bxf4 {[%clk 0:02:14.4]} 19... Nh5 {[%clk
0:01:19.1]} 20. Nb5 {[%clk 0:02:08.6]} 20... Nxf4 {[%clk 0:01:16.2]} 21. Rxf4
{[%clk 0:02:09.5]} 21... Ng6 {[%clk 0:01:16]} 22. Rf1 {[%clk 0:02:08.3]} 22...
f4 {[%clk 0:01:11.2]} 23. Kh1 {[%clk 0:02:00.7]} 23... Bf5 {[%clk 0:01:06.6]}
24. Rb3 {[%clk 0:01:56.9]} 24... Nh4 {[%clk 0:00:55.2]} 25. Nd4 {[%clk
0:01:54.8]} 25... Nxg2 {[%clk 0:00:50.7]} 26. Nxg2 {[%clk 0:01:53.6]} 26... Be4
{[%clk 0:00:49.2]} 27. Ne6 {[%clk 0:01:50.6]} 27... Qf6 {[%clk 0:00:41.1]} 28.
Rxf4 {[%clk 0:01:33.2]} 28... Qe5 {[%clk 0:00:20.5]} 29. Rxf8+ {[%clk
0:01:04.1]} 29... Bxf8 {[%clk 0:00:10]} 30. Nxc7 {[%clk 0:00:57.3]} 30... Rc8
{[%clk 0:00:04.9]} 31. Rg3+ {[%clk 0:00:55.3]} 31... Kh8 {[%clk 0:00:04.5]} 32.
Ne6 {[%clk 0:00:54.6]} 32... Bxd5 {[%clk 0:00:03.3]} 33. Nxf8 {[%clk 0:00:32]}
33... Rxf8 {[%clk 0:00:04.2]} 34. c7 {[%clk 0:00:32.5]} 34... Bb7 {[%clk
0:00:03.8]} 35. Qc1 {[%clk 0:00:25.6]} 35... Qf6 {[%clk 0:00:03.1]} 36. h3
{[%clk 0:00:10.7]} 36... Kh7 {[%clk 0:00:03.2]} 37. Kh2 {[%clk 0:00:09.7]} 37...
Be4 {[%clk 0:00:02]} 38. c8=Q {[%clk 0:00:08.7]} 38... Rxc8 {[%clk 0:00:02]} 39.
Qxc8 {[%clk 0:00:09.6]} 39... Qf1 {[%clk 0:00:01.9]} 40. Qg8# {[%clk 0:00:09.5]}
1-0

[Event "Early-Titled-Tuesday-Blitz-March-26-2024"]
[Site "Chess.com"]
[Date "2024.03.26"]
[Round "10"]
[White "sorch29"]
[Black "ketster"]
[Result "0-1"]
[WhiteElo "2469"]
[BlackElo "2586"]
[TimeControl "180+1"]
[EndTime "9:53:18 PDT"]
[Termination "ketster won by resignation"]

1. c4 {[%clk 0:03:00.9]} 1... e5 {[%clk 0:02:53.2]} 2. Nc3 {[%clk 0:03:00.4]}
2... Bb4 {[%clk 0:02:48.9]} 3. Nd5 {[%clk 0:02:59.3]} 3... Bc5 {[%clk
0:02:46.8]} 4. Nf3 {[%clk 0:02:52.7]} 4... Nc6 {[%clk 0:02:46.3]} 5. d3 {[%clk
0:02:47.8]} 5... d6 {[%clk 0:02:39.5]} 6. g3 {[%clk 0:02:45.3]} 6... Nge7 {[%clk
0:02:33.1]} 7. Bg2 {[%clk 0:02:38.2]} 7... Nxd5 {[%clk 0:02:23.4]} 8. cxd5
{[%clk 0:02:39.1]} 8... Ne7 {[%clk 0:02:24]} 9. e4 {[%clk 0:02:20.3]} 9... O-O
{[%clk 0:01:56.2]} 10. O-O {[%clk 0:02:05.4]} 10... c6 {[%clk 0:01:56.2]} 11. d4
{[%clk 0:02:00.4]} 11... exd4 {[%clk 0:01:51]} 12. Nxd4 {[%clk 0:02:00.5]} 12...
cxd5 {[%clk 0:01:46.9]} 13. exd5 {[%clk 0:02:00.7]} 13... Nf5 {[%clk 0:01:46.9]}
14. Nb3 {[%clk 0:01:42.9]} 14... Bb6 {[%clk 0:01:41.2]} 15. Bd2 {[%clk 0:01:43]}
15... a5 {[%clk 0:01:28.2]} 16. Bc3 {[%clk 0:01:43.1]} 16... a4 {[%clk
0:01:28.4]} 17. Nd4 {[%clk 0:01:38.3]} 17... Nxd4 {[%clk 0:01:23.9]} 18. Bxd4
{[%clk 0:01:37.2]} 18... Bxd4 {[%clk 0:01:23.6]} 19. Qxd4 {[%clk 0:01:35.7]}
19... Bd7 {[%clk 0:00:53.5]} 20. Rfc1 {[%clk 0:00:52.5]} 20... Rc8 {[%clk
0:00:44]} 21. Bf1 {[%clk 0:00:46.5]} 21... Qa5 {[%clk 0:00:40.1]} 22. b4 {[%clk
0:00:37.2]} 22... Qd8 {[%clk 0:00:17]} 23. h4 {[%clk 0:00:25.5]} 23... h6 {[%clk
0:00:10.5]} 24. a3 {[%clk 0:00:21.6]} 24... Re8 {[%clk 0:00:10.6]} 25. Bd3
{[%clk 0:00:18.5]} 25... Re5 {[%clk 0:00:06.8]} 26. Re1 {[%clk 0:00:18.3]} 26...
Qc7 {[%clk 0:00:02.6]} 27. Rec1 {[%clk 0:00:16.3]} 27... Qxc1+ {[%clk
0:00:02.3]} 28. Rxc1 {[%clk 0:00:15.9]} 28... Rxc1+ {[%clk 0:00:03.2]} 29. Kg2
{[%clk 0:00:16.3]} 29... b5 {[%clk 0:00:02.3]} 30. Qa7 {[%clk 0:00:15.7]} 30...
Be8 {[%clk 0:00:01.7]} 31. Qd4 {[%clk 0:00:15.2]} 31... Rxd5 {[%clk 0:00:01.3]}
32. Qxd5 {[%clk 0:00:15.3]} 32... Bc6 {[%clk 0:00:01.7]} 33. Be4 {[%clk
0:00:14]} 33... Bxd5 {[%clk 0:00:02.2]} 34. Bxd5 {[%clk 0:00:14.9]} 34... Rc3
{[%clk 0:00:02.7]} 35. Bc6 {[%clk 0:00:15.1]} 35... Rxa3 {[%clk 0:00:03.4]} 36.
Bxb5 {[%clk 0:00:15.8]} 36... Ra1 {[%clk 0:00:03.9]} 37. Bc4 {[%clk 0:00:15.7]}
37... a3 {[%clk 0:00:04.4]} 38. b5 {[%clk 0:00:16.5]} 38... Rb1 {[%clk
0:00:04.7]} 39. Kf3 {[%clk 0:00:14.8]} 39... Rxb5 {[%clk 0:00:05.1]} 40. Bxb5
{[%clk 0:00:14]} 40... a2 {[%clk 0:00:05.2]} 41. Bc4 {[%clk 0:00:14.9]} 41...
a1=Q {[%clk 0:00:05.9]} 42. Bd5 {[%clk 0:00:15.8]} 42... Qc3+ {[%clk 0:00:06.6]}
0-1

[Event "Early-Titled-Tuesday-Blitz-March-26-2024"]
[Site "Chess.com"]
[Date "2024.03.26"]
[Round "10"]
[White "TatjanaVasilevich"]
[Black "Charodej1"]
[Result "1-0"]
[WhiteElo "2602"]
[BlackElo "2426"]
[TimeControl "180+1"]
[EndTime "9:53:20 PDT"]
[Termination "TatjanaVasilevich won by checkmate"]

1. d4 {[%clk 0:02:55.3]} 1... Nf6 {[%clk 0:02:57.5]} 2. c4 {[%clk 0:02:55.2]}
2... e6 {[%clk 0:02:55.4]} 3. Nc3 {[%clk 0:02:54.2]} 3... Bb4 {[%clk 0:02:54.7]}
4. e3 {[%clk 0:02:54.2]} 4... O-O {[%clk 0:02:54.6]} 5. a3 {[%clk 0:02:54.2]}
5... Bxc3+ {[%clk 0:02:54.2]} 6. bxc3 {[%clk 0:02:55.1]} 6... d6 {[%clk
0:02:54.4]} 7. Bd3 {[%clk 0:02:55.1]} 7... Nc6 {[%clk 0:02:54.6]} 8. Ne2 {[%clk
0:02:55.3]} 8... e5 {[%clk 0:02:55]} 9. O-O {[%clk 0:02:54.4]} 9... Re8 {[%clk
0:02:48.9]} 10. f3 {[%clk 0:02:52.1]} 10... Ne7 {[%clk 0:02:45.4]} 11. e4 {[%clk
0:02:48.7]} 11... c5 {[%clk 0:02:45.2]} 12. Be3 {[%clk 0:02:47.3]} 12... Qc7
{[%clk 0:02:44.3]} 13. Qc2 {[%clk 0:02:45.7]} 13... Nd7 {[%clk 0:02:40.3]} 14.
f4 {[%clk 0:02:44.6]} 14... exd4 {[%clk 0:02:36.9]} 15. cxd4 {[%clk 0:02:43.9]}
15... cxd4 {[%clk 0:02:26.8]} 16. Bxd4 {[%clk 0:02:42.2]} 16... Nc5 {[%clk
0:02:26.6]} 17. Nc3 {[%clk 0:02:40.2]} 17... a6 {[%clk 0:02:20.5]} 18. Rf3
{[%clk 0:02:39.1]} 18... Nxd3 {[%clk 0:02:08.3]} 19. Qxd3 {[%clk 0:02:36.3]}
19... Be6 {[%clk 0:02:06.2]} 20. Rg3 {[%clk 0:02:34.2]} 20... g6 {[%clk
0:01:59.8]} 21. Nd5 {[%clk 0:02:33]} 21... Bxd5 {[%clk 0:01:55.1]} 22. cxd5
{[%clk 0:02:32.3]} 22... Rac8 {[%clk 0:01:49.1]} 23. Rb1 {[%clk 0:02:17.8]}
23... b5 {[%clk 0:01:47.9]} 24. Bc3 {[%clk 0:01:45.9]} 24... Qc5+ {[%clk
0:01:40.2]} 25. Kh1 {[%clk 0:01:45.2]} 25... Qc4 {[%clk 0:01:36.1]} 26. Bb4
{[%clk 0:01:37.9]} 26... Qc1+ {[%clk 0:01:04.1]} 27. Qd1 {[%clk 0:01:36.5]}
27... Qxf4 {[%clk 0:00:47.8]} 28. Rg4 {[%clk 0:01:14.7]} 28... Qe5 {[%clk
0:00:46.4]} 29. Be1 {[%clk 0:01:08.4]} 29... f5 {[%clk 0:00:41.8]} 30. Bg3
{[%clk 0:00:59.8]} 30... Qf6 {[%clk 0:00:35]} 31. Rf4 {[%clk 0:00:58.7]} 31...
Rc4 {[%clk 0:00:34.5]} 32. e5 {[%clk 0:00:54.8]} 32... dxe5 {[%clk 0:00:33.1]}
33. Rxc4 {[%clk 0:00:54.9]} 33... bxc4 {[%clk 0:00:34]} 34. Qa4 {[%clk
0:00:51.2]} 34... Rd8 {[%clk 0:00:26.4]} 35. Qxc4 {[%clk 0:00:51]} 35... Nxd5
{[%clk 0:00:19.9]} 36. Rd1 {[%clk 0:00:49.3]} 36... Qe6 {[%clk 0:00:19.6]} 37.
Bh4 {[%clk 0:00:47.9]} 37... Rd7 {[%clk 0:00:16.6]} 38. Bg5 {[%clk 0:00:47.7]}
38... Kf7 {[%clk 0:00:15.5]} 39. Rc1 {[%clk 0:00:39.8]} 39... Ne7 {[%clk
0:00:15.3]} 40. Qb4 {[%clk 0:00:35]} 40... Qd6 {[%clk 0:00:13.8]} 41. Qb3+
{[%clk 0:00:33.3]} 41... Qd5 {[%clk 0:00:13.9]} 42. Qc2 {[%clk 0:00:31.3]} 42...
Qd3 {[%clk 0:00:12.3]} 43. Qa2+ {[%clk 0:00:30.7]} 43... Qd5 {[%clk 0:00:12.4]}
44. Qc2 {[%clk 0:00:29.5]} 44... e4 {[%clk 0:00:12.8]} 45. h4 {[%clk 0:00:27.6]}
45... Ng8 {[%clk 0:00:12.8]} 46. Qc8 {[%clk 0:00:26.4]} 46... Ne7 {[%clk
0:00:09.4]} 47. Qh8 {[%clk 0:00:25]} 47... Ke6 {[%clk 0:00:09.4]} 48. Qf6#
{[%clk 0:00:24.9]} 1-0

[Event "Early-Titled-Tuesday-Blitz-March-26-2024"]
[Site "Chess.com"]
[Date "2024.03.26"]
[Round "10"]
[White "vladgoncharov"]
[Black "amylazy"]
[Result "0-1"]
[WhiteElo "2581"]
[BlackElo "2440"]
[TimeControl "180+1"]
[EndTime "9:53:20 PDT"]
[Termination "amylazy won by resignation"]

1. d4 {[%clk 0:03:00.9]} 1... Nf6 {[%clk 0:02:59.6]} 2. c4 {[%clk 0:03:00.2]}
2... g6 {[%clk 0:02:59.9]} 3. Nc3 {[%clk 0:02:59.8]} 3... d5 {[%clk 0:03:00.6]}
4. cxd5 {[%clk 0:02:59.6]} 4... Nxd5 {[%clk 0:03:01.5]} 5. e4 {[%clk 0:02:59.6]}
5... Nxc3 {[%clk 0:03:02.1]} 6. bxc3 {[%clk 0:03:00]} 6... Bg7 {[%clk 0:03:03]}
7. Bc4 {[%clk 0:03:00.1]} 7... c5 {[%clk 0:03:03.7]} 8. Ne2 {[%clk 0:02:59.9]}
8... O-O {[%clk 0:03:04.2]} 9. O-O {[%clk 0:02:59.9]} 9... Nc6 {[%clk
0:03:04.8]} 10. Be3 {[%clk 0:02:59.8]} 10... Na5 {[%clk 0:03:04.8]} 11. Bd3
{[%clk 0:02:58.5]} 11... b6 {[%clk 0:03:05.4]} 12. f4 {[%clk 0:02:50.3]} 12...
cxd4 {[%clk 0:02:59.7]} 13. cxd4 {[%clk 0:02:50]} 13... Bg4 {[%clk 0:02:59.5]}
14. h3 {[%clk 0:02:46.7]} 14... Bxe2 {[%clk 0:02:59.5]} 15. Bxe2 {[%clk
0:02:47.1]} 15... Rc8 {[%clk 0:02:59.4]} 16. Qa4 {[%clk 0:02:27.4]} 16... Rc3
{[%clk 0:02:55.6]} 17. Bf2 {[%clk 0:02:25.1]} 17... Qc7 {[%clk 0:02:51.1]} 18.
e5 {[%clk 0:02:17.8]} 18... Nc4 {[%clk 0:02:42]} 19. Rac1 {[%clk 0:02:06.7]}
19... Nd2 {[%clk 0:02:34.6]} 20. Rxc3 {[%clk 0:02:02.3]} 20... Qxc3 {[%clk
0:02:35.1]} 21. Rd1 {[%clk 0:01:54.6]} 21... Rc8 {[%clk 0:02:31.1]} 22. Qd7
{[%clk 0:01:44.9]} 22... Bh6 {[%clk 0:02:29.9]} 23. e6 {[%clk 0:01:32.5]} 23...
Bxf4 {[%clk 0:02:22.6]} 24. Qxe7 {[%clk 0:01:28]} 24... Rf8 {[%clk 0:02:09.9]}
25. Bg4 {[%clk 0:01:17.1]} 25... f5 {[%clk 0:02:01.5]} 26. Be2 {[%clk
0:01:12.3]} 26... Ne4 {[%clk 0:01:57.5]} 27. Qb7 {[%clk 0:00:28.1]} 27... Nxf2
{[%clk 0:01:56.3]} 28. Kxf2 {[%clk 0:00:27.8]} 28... Qe3+ {[%clk 0:01:55.1]} 29.
Kf1 {[%clk 0:00:27.9]} 29... Bh2 {[%clk 0:01:48.9]} 30. Bc4 {[%clk 0:00:14.6]}
30... Qf4+ {[%clk 0:01:30.6]} 31. Qf3 {[%clk 0:00:13.9]} 31... Qxf3+ {[%clk
0:01:26.3]} 32. gxf3 {[%clk 0:00:13.8]} 32... Re8 {[%clk 0:01:24.9]} 33. Bd5
{[%clk 0:00:12.9]} 33... Bd6 {[%clk 0:01:24.8]} 34. Ke2 {[%clk 0:00:12.8]} 34...
Kg7 {[%clk 0:01:24.8]} 35. Rc1 {[%clk 0:00:13.1]} 35... Kf6 {[%clk 0:01:24.5]}
36. Rc6 {[%clk 0:00:13.7]} 36... Ke7 {[%clk 0:01:23.8]} 37. Kd3 {[%clk
0:00:13.4]} 37... g5 {[%clk 0:01:22.7]} 38. a4 {[%clk 0:00:13.1]} 38... h5
{[%clk 0:01:22.7]} 39. Rc1 {[%clk 0:00:13.1]} 39... g4 {[%clk 0:01:20.1]} 40.
fxg4 {[%clk 0:00:13]} 40... hxg4 {[%clk 0:01:21]} 41. hxg4 {[%clk 0:00:13.3]}
41... fxg4 {[%clk 0:01:21.8]} 42. Rh1 {[%clk 0:00:13.1]} 42... g3 {[%clk
0:01:16.8]} 43. Rh7+ {[%clk 0:00:13.1]} 43... Kf6 {[%clk 0:01:17]} 44. Rf7+
{[%clk 0:00:13.1]} 44... Kg5 {[%clk 0:01:15.7]} 45. Ke4 {[%clk 0:00:13.2]} 45...
Kh4 {[%clk 0:01:12]} 46. Rd7 {[%clk 0:00:08.9]} 46... g2 {[%clk 0:01:11.6]} 47.
Rh7+ {[%clk 0:00:08.1]} 47... Kg3 {[%clk 0:01:11.4]} 48. Rg7+ {[%clk 0:00:08.4]}
48... Kf2 {[%clk 0:01:10.8]} 49. Kf5 {[%clk 0:00:08.5]} 49... g1=Q {[%clk
0:01:09.5]} 50. Rxg1 {[%clk 0:00:08.4]} 50... Kxg1 {[%clk 0:01:10.4]} 51. Bc6
{[%clk 0:00:08.8]} 51... Re7 {[%clk 0:01:10.5]} 52. Kf6 {[%clk 0:00:08.4]} 52...
Kf2 {[%clk 0:01:10.8]} 53. d5 {[%clk 0:00:08.9]} 53... Ke3 {[%clk 0:01:11.3]}
54. Bd7 {[%clk 0:00:08.6]} 54... Kd4 {[%clk 0:01:11.7]} 55. Bc6 {[%clk 0:00:09]}
55... Kc5 {[%clk 0:01:11.5]} 56. Kf5 {[%clk 0:00:09.3]} 56... a6 {[%clk
0:01:11.7]} 57. Ke4 {[%clk 0:00:09.8]} 57... b5 {[%clk 0:01:12]} 58. axb5 {[%clk
0:00:10.7]} 58... axb5 {[%clk 0:01:12.9]} 59. Kd3 {[%clk 0:00:11.5]} 59... b4
{[%clk 0:01:12.4]} 60. Kc2 {[%clk 0:00:11.6]} 60... Ra7 {[%clk 0:01:12.9]} 61.
Kb3 {[%clk 0:00:11.9]} 61... Ra3+ {[%clk 0:01:12.7]} 62. Kb2 {[%clk 0:00:12.3]}
62... Rd3 {[%clk 0:01:07.7]} 63. Kc2 {[%clk 0:00:11.9]} 63... Rxd5 {[%clk
0:01:07.9]} 0-1